[Event "NED-ch U14 Girls 2019"]
[Site "Assen"]
[Date "2019.05.02"]
[Round "5.2"]
[White "Cordes, Jule"]
[Black "Den Heijer, Rolinde"]
[Result "1-0"]
[ECO "D53"]
[WhiteElo "1564"]
[BlackElo "1423"]
[Annotator "NA"]
[PlyCount "103"]
[EventDate "2019.04.28"]
[EventType "swiss"]
[EventCountry "NED"]
[SourceTitle "playchess.com"]
[Source "ChessBase"]
[SourceQuality "1"]
[TimeControl "40/5400+30:1800+30"]

1. d4 {[%emt 0:00:00]} Nf6 {[%emt 0:00:00]} 2. c4 {[%emt 0:00:00]} e6 {[%emt 0:00:04]} 3. Nc3 {[%emt 0:00:00]} d5 {[%emt 0:00:32]} 4. Nf3 {[%emt 0:00:19]} b6 {[%emt 0:00:50]} 5. Bg5 {[%emt 0:00:59]} Be7 {[%emt 0:00:57]} 6. cxd5 {[%emt 0:01:52]} exd5 {[%emt 0:01:50]} 7. e3 {[%emt 0:01:20]} Bg4 {[%emt 0:01:54]} 8. Qa4+ {[%emt 0:05:47]} c6 {[%emt 0:02:23]} 9. Ne5 {[%emt 0:02:01]} Bd7 {[%emt 0:02:49]} 10. Nxd7 {[%emt 0:03:19]} Qxd7 {[%emt 0:01:29]} 11. h3 {[%emt 0:03:19]} O-O {[%emt 0:02:39]} 12. Bd3 {[%emt 0:01:06]} Qc7 {[%emt 0:02:09]} 13. Rc1 {[%emt 0:02:35]} Qd6 {[%emt 0:03:23]} 14. a3 {[%emt 0:05:46]} Re8 {[%emt 0:08:01]} 15. O-O {[%emt 0:02:34]} Ne4 {[%emt 0:04:47]} 16. Bf4 {[%emt 0:13:19]} Qe6 {[%emt 0:04:28]} 17. Qc2 {[%emt 0:05:33]} g6 {[%emt 0:07:00]} 18. Bxe4 {[%emt 0:10:57]} dxe4 {[%emt 0:01:59]} 19. Nxe4 {[%emt 0:02:20]} Rc8 {[%emt 0:06:31]} 20. Rfd1 {[%emt 0:02:34]} Qd5 {[%emt 0:04:30]} 21. Qd3 {[%emt 0:03:47]} Nd7 {[%emt 0:03:37]} 22. Rc3 {[%emt 0:04:00]} Re8 {[%emt 0:04:39]} 23. Nd2 {[%emt 0:01:01]} c5 {[%emt 0:06:27]} 24. Nf3 {[%emt 0:09:00]} Nf6 {[%emt 0:05:30]} 25. dxc5 {[%emt 0:09:42]} Qxd3 {[%emt 0:00:52]} 26. Rcxd3 {[%emt 0:00:21]} Bxc5 {[%emt 0:00:41]} 27. Be5 {[%emt 0:01:10]} Ne4 {[%emt 0:03:11]} 28. Bd4 {[%emt 0:02:22]} Rac8 {[%emt 0:03:18]} 29. Nd2 {[%emt 0:02:25]} Ng5 {[%emt 0:05:10]} 30. Bc3 {[%emt 0:00:27]} Red8 {[%emt 0:03:30]} 31. Nb3 {[%emt 0:03:21]} Rxd3 {[%emt 0:01:52]} 32. Rxd3 {[%emt 0:00:01]} Bf8 {[%emt 0:00:33]} 33. Rd7 {[%emt 0:01:20]} Ne4 {[%emt 0:03:41]} 34. Bd4 {[%emt 0:00:30]} Bg7 {[%emt 0:01:04]} 35. f3 {[%emt 0:01:17]} Bxd4 {[%emt 0:01:02]} 36. Nxd4 {[%emt 0:01:00]} Nc5 {[%emt 0:00:20]} 37. Rxa7 {[%emt 0:00:04]} Nd3 {[%emt 0:00:19]} 38. b3 {[%emt 0:00:40]} Re8 {[%emt 0:01:28]} 39. e4 {[%emt 0:00:10]} Rd8 {[%emt 0:00:28]} 40. Ne2 {[%emt 0:00:44]} Rb8 {[%emt 0:00:44]} 41. Nc3 {[%emt 0:02:05]} Nc5 {[%emt 0:04:45]} 42. b4 {[%emt 0:01:08]} Ne6 {[%emt 0:01:22]} 43. Nd5 {[%emt 0:03:37]} b5 {[%emt 0:02:01]} 44. Nc3 {[%emt 0:01:33]} Nd4 {[%emt 0:02:54]} 45. Kf2 {[%emt 0:01:02]} Kf8 {[%emt 0:02:27]} 46. Ke3 {[%emt 0:03:30]} Nc6 {[%emt 0:01:21]} 47. Ra6 {[%emt 0:01:49]} Ne5 {[%emt 0:01:48]} 48. Nd5 {[%emt 0:02:56]} Rc8 {[%emt 0:02:17]} 49. Kf4 {[%emt 0:03:57]} Nc6 {[%emt 0:03:40]} 50. Nb6 {[%emt 0:06:17]} Nb8 {[%emt 0:05:00]} 51. Ra8 {[%emt 0:01:03]} Re8 {[%emt 0:00:19]} 52. Rxb8 {[%emt 0:00:12]} 1-0

[Event "NED-ch U14 Girls 2019"]
[Site "Assen"]
[Date "2019.05.02"]
[Round "5.3"]
[White "Yeh, Nora"]
[Black "Morote, Luna"]
[Result "1/2-1/2"]
[ECO "E61"]
[WhiteElo "1529"]
[BlackElo "1360"]
[Annotator "NA"]
[PlyCount "100"]
[EventDate "2019.04.28"]
[EventType "swiss"]
[EventCountry "NED"]
[SourceTitle "playchess.com"]
[Source "ChessBase"]
[SourceQuality "1"]
[TimeControl "40/5400+30:1800+30"]

1. d4 {[%emt 0:00:00]} Nf6 {[%emt 0:00:00]} 2. Nf3 {[%emt 0:00:00]} g6 {[%emt 0:00:00]} 3. c4 {[%emt 0:00:00]} Bg7 {[%emt 0:00:10]} 4. Nc3 {[%emt 0:00:00]} O-O {[%emt 0:00:16]} 5. Bg5 {[%emt 0:00:00]} d6 {[%emt 0:00:35]} 6. e3 {[%emt 0:00:03]} Nbd7 {[%emt 0:00:12]} 7. Bd3 {[%emt 0:00:08]} Re8 {[%emt 0:01:07]} 8. O-O {[%emt 0:00:16]} e5 {[%emt 0:01:06]} 9. dxe5 {[%emt 0:01:06]} dxe5 {[%emt 0:00:34]} 10. e4 {[%emt 0:02:01]} Nc5 {[%emt 0:02:10]} 11. Bc2 {[%emt 0:02:37]} Qxd1 {[%emt 0:10:01]} 12. Raxd1 {[%emt 0:00:58]} Bg4 {[%emt 0:07:55]} 13. Bxf6 {[%emt 0:01:41]} Bxf6 {[%emt 0:00:46]} 14. Nd5 {[%emt 0:05:16]} Bd8 {[%emt 0:00:49]} 15. b4 {[%emt 0:01:03]} Bxf3 {[%emt 0:02:44]} 16. gxf3 {[%emt 0:00:22]} Ne6 {[%emt 0:00:13]} 17. Ba4 {[%emt 0:00:36]} c6 {[%emt 0:01:48]} 18. Ne3 {[%emt 0:00:44]} Bc7 {[%emt 0:02:54]} 19. Ng4 {[%emt 0:02:40]} Kg7 {[%emt 0:00:39]} 20. Rd2 {[%emt 0:01:38]} Rad8 {[%emt 0:01:23]} 21. Rfd1 {[%emt 0:01:05]} Rxd2 {[%emt 0:02:26]} 22. Rxd2 {[%emt 0:00:17]} Rd8 {[%emt 0:00:15]} 23. Rxd8 {[%emt 0:00:16]} Nxd8 {[%emt 0:00:02]} 24. Kf1 {[%emt 0:00:29]} Ne6 {[%emt 0:00:14]} 25. Ne3 {[%emt 0:01:14]} Nd4 {[%emt 0:01:03]} 26. Kg2 {[%emt 0:01:05]} a6 {[%emt 0:01:06]} 27. Nc2 {[%emt 0:01:17]} Nxc2 {[%emt 0:01:01]} 28. Bxc2 {[%emt 0:00:29]} a5 {[%emt 0:00:42]} 29. a3 {[%emt 0:00:24]} axb4 {[%emt 0:01:34]} 30. axb4 {[%emt 0:00:18]} b6 {[%emt 0:00:15]} 31. Ba4 {[%emt 0:00:33]} c5 {[%emt 0:00:27]} 32. bxc5 {[%emt 0:00:59]} bxc5 {[%emt 0:00:02]} 33. Bd7 {[%emt 0:00:40]} Bd8 {[%emt 0:00:30]} 34. Kg3 {[%emt 0:00:59]} Bg5 {[%emt 0:00:13]} 35. h3 {[%emt 0:02:17]} Kf8 {[%emt 0:01:34]} 36. Kg2 {[%emt 0:02:20]} Bf4 {[%emt 0:00:26]} 37. Kf1 {[%emt 0:01:01]} Ke7 {[%emt 0:00:21]} 38. Bc6 {[%emt 0:00:46]} f6 {[%emt 0:01:32]} 39. Ke2 {[%emt 0:01:02]} h6 {[%emt 0:00:24]} 40. Kd3 {[%emt 0:05:47]} Kd6 {[%emt 0:01:39]} 41. Bd5 {[%emt 0:31:30]} Kc7 {[%emt 0:33:01]} 42. Kc3 {[%emt 0:02:00]} Kb6 {[%emt 0:00:15]} 43. Be6 {[%emt 0:02:04]} g5 {[%emt 0:04:18]} 44. Kd3 {[%emt 0:02:17]} h5 {[%emt 0:03:11]} 45. Bf7 {[%emt 0:02:36]} h4 {[%emt 0:00:12]} 46. Be8 {[%emt 0:01:44]} Ka5 {[%emt 0:01:07]} 47. Kc3 {[%emt 0:04:19]} Bh2 {[%emt 0:01:00]} 48. Kd3 {[%emt 0:03:11]} Kb4 {[%emt 0:00:39]} 49. Bb5 {[%emt 0:02:08]} Bg1 {[%emt 0:01:51]} 50. Ke2 {[%emt 0:00:20]} Kc3 {[%emt 0:01:32]} 1/2-1/2

[Event "NED-ch U14 Girls 2019"]
[Site "Assen"]
[Date "2019.05.02"]
[Round "5.6"]
[White "Molanus, Eva"]
[Black "Velasco, Kathleen"]
[Result "0-1"]
[ECO "D08"]
[WhiteElo "1258"]
[BlackElo "1306"]
[Annotator "NA"]
[PlyCount "86"]
[EventDate "2019.04.28"]
[EventType "swiss"]
[EventCountry "NED"]
[SourceTitle "playchess.com"]
[Source "ChessBase"]
[SourceQuality "1"]
[TimeControl "40/5400+30:1800+30"]

1. d4 {[%emt 0:00:00]} d5 {[%emt 0:00:00]} 2. c4 {[%emt 0:00:00]} e5 {[%emt 0:00:25]} 3. dxe5 {[%emt 0:01:00]} d4 {[%emt 0:00:11]} 4. Nf3 {[%emt 0:00:38]} Nc6 {[%emt 0:00:10]} 5. Bg5 {[%emt 0:01:16]} Be7 {[%emt 0:01:07]} 6. Bxe7 {[%emt 0:03:29]} Ngxe7 {[%emt 0:00:16]} 7. g3 {[%emt 0:02:00]} Be6 {[%emt 0:02:01]} 8. Nbd2 {[%emt 0:00:43]} Qd7 {[%emt 0:01:05]} 9. Bg2 {[%emt 0:03:10]} O-O-O {[%emt 0:03:51]} 10. O-O {[%emt 0:02:42]} h6 {[%emt 0:12:23]} 11. Qc2 {[%emt 0:14:38]} g5 {[%emt 0:02:20]} 12. a3 {[%emt 0:03:37]} Ng6 {[%emt 0:02:57]} 13. Qa4 {[%emt 0:08:13]} g4 {[%emt 0:02:07]} 14. Ne1 {[%emt 0:03:34]} Ngxe5 {[%emt 0:01:03]} 15. b4 {[%emt 0:07:04]} Kb8 {[%emt 0:16:52]} 16. Ne4 {[%emt 0:08:20]} Ne7 {[%emt 0:04:44]} 17. Qxd7 {[%emt 0:03:53]} Bxd7 {[%emt 0:00:54]} 18. Nc2 {[%emt 0:01:13]} Bc6 {[%emt 0:00:52]} 19. Rfd1 {[%emt 0:09:47]} Nf5 {[%emt 0:01:35]} 20. c5 {[%emt 0:01:41]} Bb5 {[%emt 0:01:03]} 21. Rd2 {[%emt 0:04:37]} Ba4 {[%emt 0:05:52]} 22. Rc1 {[%emt 0:04:11]} d3 {[%emt 0:06:39]} 23. exd3 {[%emt 0:01:39]} Rxd3 {[%emt 0:00:26]} 24. Bf1 {[%emt 0:02:58]} Nf3+ {[%emt 0:01:26]} 25. Kg2 {[%emt 0:00:47]} Rxd2 {[%emt 0:00:31]} 26. Nxd2 {[%emt 0:00:20]} Bxc2 {[%emt 0:00:54]} 27. Nxf3 {[%emt 0:00:54]} Be4 {[%emt 0:00:16]} 28. Be2 {[%emt 0:00:30]} Bxf3+ {[%emt 0:01:08]} 29. Bxf3 {[%emt 0:00:12]} gxf3+ {[%emt 0:00:05]} 30. Kxf3 {[%emt 0:00:06]} Rd8 {[%emt 0:00:13]} 31. Re1 {[%emt 0:00:30]} Nd4+ {[%emt 0:02:53]} 32. Kg2 {[%emt 0:00:27]} Ne6 {[%emt 0:00:18]} 33. f4 {[%emt 0:00:22]} Re8 {[%emt 0:00:41]} 34. Rd1 {[%emt 0:00:37]} Kc8 {[%emt 0:00:38]} 35. a4 {[%emt 0:00:23]} c6 {[%emt 0:01:33]} 36. f5 {[%emt 0:00:40]} Ng5 {[%emt 0:03:49]} 37. h4 {[%emt 0:02:06]} Ne4 {[%emt 0:00:32]} 38. Rd4 {[%emt 0:02:07]} h5 {[%emt 0:02:34]} 39. Kf3 {[%emt 0:01:16]} Nc3 {[%emt 0:00:57]} 40. a5 {[%emt 0:00:34]} Nd5 {[%emt 0:00:11]} 41. Kg2 {[%emt 0:30:32]} Re5 {[%emt 0:31:44]} 42. g4 {[%emt 0:01:27]} hxg4 {[%emt 0:00:10]} 43. Rxg4 {[%emt 0:00:06]} Ne3+ {[%emt 0:00:04]} 0-1

[Event "NED-ch U14 Girls 2019"]
[Site "Assen"]
[Date "2019.05.02"]
[Round "5.7"]
[White "Verheij, Dana"]
[Black "Bruggink, Lyne"]
[Result "1-0"]
[ECO "C53"]
[WhiteElo "1377"]
[BlackElo "1425"]
[Annotator "NA"]
[PlyCount "39"]
[EventDate "2019.04.28"]
[EventType "swiss"]
[EventCountry "NED"]
[SourceTitle "playchess.com"]
[Source "ChessBase"]
[SourceQuality "1"]
[TimeControl "40/5400+30:1800+30"]

1. e4 {[%emt 1:30:30]} e5 {[%emt 1:30:30]} 2. Nf3 {[%emt 0:00:00]} Nc6 {[%emt 0:00:00]} 3. Bc4 {[%emt 0:00:00]} Bc5 {[%emt 0:00:00]} 4. c3 {[%emt 0:00:00]} f5 {[%emt 0:00:00]} 5. d4 {[%emt 0:00:00]} exd4 {[%emt 0:00:00]} 6. cxd4 {[%emt 0:00:00]} Bb4+ {[%emt 0:00:00]} 7. Nc3 {[%emt 0:00:00]} fxe4 {[%emt 0:00:00]} 8. Ne5 {[%emt 0:00:00]} Nxe5 {[%emt 0:00:00]} 9. dxe5 {[%emt 0:00:00]} Ne7 {[%emt 0:00:00]} 10. O-O {[%emt 0:00:00]} Bxc3 {[%emt 0:00:00]} 11. bxc3 {[%emt 0:00:00]} d5 {[%emt 0:00:00]} 12. exd6 {[%emt 0:00:00]} cxd6 {[%emt 0:00:00]} 13. Bg5 {[%emt 0:00:00]} Qd7 {[%emt 0:00:00]} 14. Bxe7 {[%emt 0:00:00]} Qxe7 {[%emt 0:00:00]} 15. Re1 {[%emt 0:00:00]} Bd7 {[%emt 0:00:00]} 16. Qd5 {[%emt 0:00:00]} O-O-O {[%emt 0:00:00]} 17. Rxe4 {[%emt 0:08:00]} Qf6 {[%emt 0:00:00]} 18. Ba6 {[%emt 0:00:00]} Bc6 {[%emt 0:00:00]} 19. Qxc6+ {[%emt 0:00:00]} Kb8 {[%emt 0:00:00]} 20. Qxb7# {[%emt 0:00:00]} 1-0

[Event "NED-ch U14 Girls 2019"]
[Site "Assen"]
[Date "2019.05.03"]
[Round "6.1"]
[White "Cordes, Jule"]
[Black "Huang, Wendy"]
[Result "1/2-1/2"]
[ECO "D31"]
[WhiteElo "1564"]
[BlackElo "1586"]
[Annotator "NA"]
[PlyCount "44"]
[EventDate "2019.04.28"]
[EventType "swiss"]
[EventCountry "NED"]
[SourceTitle "playchess.com"]
[Source "ChessBase"]
[SourceQuality "1"]
[TimeControl "40/5400+30:1800+30"]

1. d4 {[%emt 0:00:00]} d5 {[%emt 0:00:00]} 2. c4 {[%emt 0:00:00]} e6 {[%emt 0:00:00]} 3. Nc3 {[%emt 0:00:00]} Be7 {[%emt 0:00:00]} 4. cxd5 {[%emt 0:05:01]} exd5 {[%emt 0:00:06]} 5. Qc2 {[%emt 0:01:07]} c6 {[%emt 0:03:29]} 6. Bf4 {[%emt 0:01:30]} Nf6 {[%emt 0:02:08]} 7. h3 {[%emt 0:01:44]} O-O {[%emt 0:02:34]} 8. e3 {[%emt 0:00:25]} b6 {[%emt 0:04:47]} 9. Bd3 {[%emt 0:02:40]} Bb7 {[%emt 0:03:17]} 10. Nge2 {[%emt 0:02:15]} c5 {[%emt 0:04:40]} 11. Qd1 {[%emt 0:01:04]} Re8 {[%emt 0:05:33]} 12. O-O {[%emt 0:04:33]} Nbd7 {[%emt 0:07:12]} 13. Qd2 {[%emt 0:02:49]} Ne4 {[%emt 0:17:38]} 14. Nxe4 {[%emt 0:24:49]} dxe4 {[%emt 0:00:17]} 15. Bc4 {[%emt 0:02:01]} Nf6 {[%emt 0:04:47]} 16. Rfd1 {[%emt 0:07:28]} Bd6 {[%emt 0:04:19]} 17. Bxd6 {[%emt 0:07:41]} Qxd6 {[%emt 0:00:15]} 18. Rac1 {[%emt 0:03:49]} cxd4 {[%emt 0:05:25]} 19. Qxd4 {[%emt 0:01:05]} Qe7 {[%emt 0:02:55]} 20. Qc3 {[%emt 0:02:13]} Red8 {[%emt 0:02:18]} 21. Nd4 {[%emt 0:01:41]} Rac8 {[%emt 0:02:54]} 22. Qb3 {[%emt 0:01:11]} g6 {[%emt 0:02:33]} 1/2-1/2

[Event "NED-ch U14 Girls 2019"]
[Site "Assen"]
[Date "2019.05.03"]
[Round "6.2"]
[White "Yeh, Nora"]
[Black "Den Heijer, Rolinde"]
[Result "0-1"]
[ECO "E12"]
[WhiteElo "1529"]
[BlackElo "1423"]
[Annotator "NA"]
[PlyCount "106"]
[EventDate "2019.04.28"]
[EventType "swiss"]
[EventCountry "NED"]
[SourceTitle "playchess.com"]
[Source "ChessBase"]
[SourceQuality "1"]
[TimeControl "40/5400+30:1800+30"]

1. d4 {[%emt 0:00:00]} Nf6 {[%emt 0:00:00]} 2. Nf3 {[%emt 0:00:00]} e6 {[%emt 0:00:00]} 3. c4 {[%emt 0:00:00]} b6 {[%emt 0:00:29]} 4. Nc3 {[%emt 0:00:02]} Bb7 {[%emt 0:00:28]} 5. Bg5 {[%emt 0:00:37]} Be7 {[%emt 0:01:01]} 6. e3 {[%emt 0:00:10]} O-O {[%emt 0:01:01]} 7. Bd3 {[%emt 0:00:17]} h6 {[%emt 0:00:51]} 8. Bxf6 {[%emt 0:00:14]} Bxf6 {[%emt 0:00:12]} 9. O-O {[%emt 0:00:26]} d6 {[%emt 0:01:18]} 10. Rc1 {[%emt 0:01:53]} Nd7 {[%emt 0:01:11]} 11. e4 {[%emt 0:09:14]} Ba6 {[%emt 0:06:24]} 12. Re1 {[%emt 0:02:46]} Re8 {[%emt 0:02:15]} 13. e5 {[%emt 0:08:18]} dxe5 {[%emt 0:08:29]} 14. dxe5 {[%emt 0:00:46]} Bg5 {[%emt 0:02:26]} 15. Nxg5 {[%emt 0:00:45]} Qxg5 {[%emt 0:00:36]} 16. Qe2 {[%emt 0:04:54]} Nc5 {[%emt 0:04:26]} 17. Be4 {[%emt 0:04:36]} Rad8 {[%emt 0:08:52]} 18. Rcd1 {[%emt 0:08:20]} Nxe4 {[%emt 0:12:21]} 19. Qxe4 {[%emt 0:03:19]} Rxd1 {[%emt 0:02:13]} 20. Rxd1 {[%emt 0:00:30]} Rd8 {[%emt 0:00:31]} 21. Rxd8+ {[%emt 0:03:44]} Qxd8 {[%emt 0:00:11]} 22. Qe2 {[%emt 0:08:39]} Qd4 {[%emt 0:05:06]} 23. Nb5 {[%emt 0:16:05]} Qc5 {[%emt 0:05:38]} 24. b3 {[%emt 0:04:04]} Bxb5 {[%emt 0:03:30]} 25. cxb5 {[%emt 0:00:16]} Qc1+ {[%emt 0:00:14]} 26. Qf1 {[%emt 0:00:13]} Qb2 {[%emt 0:00:23]} 27. g3 {[%emt 0:04:55]} Qxe5 {[%emt 0:02:46]} 28. Qd1 {[%emt 0:03:06]} Qd6 {[%emt 0:03:01]} 29. Qc1 {[%emt 0:00:50]} Kf8 {[%emt 0:02:13]} 30. Qc6 {[%emt 0:02:37]} Qxc6 {[%emt 0:01:53]} 31. bxc6 {[%emt 0:00:06]} Ke7 {[%emt 0:00:08]} 32. b4 {[%emt 0:00:51]} Kd6 {[%emt 0:01:03]} 33. b5 {[%emt 0:00:11]} Kc5 {[%emt 0:00:15]} 34. Kf1 {[%emt 0:02:58]} Kxb5 {[%emt 0:00:25]} 35. Ke2 {[%emt 0:00:21]} Kxc6 {[%emt 0:00:17]} 36. Kd3 {[%emt 0:00:12]} Kd5 {[%emt 0:00:25]} 37. f4 {[%emt 0:00:13]} f6 {[%emt 0:00:29]} 38. a3 {[%emt 0:00:19]} e5 {[%emt 0:00:25]} 39. fxe5 {[%emt 0:00:11]} fxe5 {[%emt 0:00:06]} 40. h4 {[%emt 0:00:15]} e4+ {[%emt 0:00:12]} 41. Ke3 {[%emt 0:30:10]} c5 {[%emt 0:30:11]} 42. g4 {[%emt 0:00:10]} c4 {[%emt 0:00:20]} 43. Kd2 {[%emt 0:00:14]} Kd4 {[%emt 0:00:12]} 44. g5 {[%emt 0:00:07]} c3+ {[%emt 0:00:33]} 45. Kd1 {[%emt 0:00:07]} Kd3 {[%emt 0:00:38]} 46. gxh6 {[%emt 0:00:09]} c2+ {[%emt 0:00:19]} 47. Kc1 {[%emt 0:00:04]} gxh6 {[%emt 0:00:05]} 48. h5 {[%emt 0:00:05]} e3 {[%emt 0:00:10]} 49. a4 {[%emt 0:00:08]} e2 {[%emt 0:00:12]} 50. Kb2 {[%emt 0:00:12]} e1=Q {[%emt 0:00:26]} 51. Kb3 {[%emt 0:00:08]} Qc3+ {[%emt 0:00:22]} 52. Ka2 {[%emt 0:00:06]} Qc4+ {[%emt 0:00:27]} 53. Kb2 {[%emt 0:00:13]} c1=Q# {[%emt 0:00:07]} 0-1

[Event "NED-ch U14 Girls 2019"]
[Site "Assen"]
[Date "2019.05.03"]
[Round "6.3"]
[White "Honkoop, Stella"]
[Black "Velasco, Kathleen"]
[Result "0-1"]
[ECO "D00"]
[WhiteElo "1629"]
[BlackElo "1306"]
[Annotator "NA"]
[PlyCount "56"]
[EventDate "2019.04.28"]
[EventType "swiss"]
[EventCountry "NED"]
[SourceTitle "playchess.com"]
[Source "ChessBase"]
[SourceQuality "1"]
[TimeControl "40/5400+30:1800+30"]

1. d4 {[%emt 0:00:00]} d5 {[%emt 0:00:00]} 2. Bf4 {[%emt 0:00:00]} Nf6 {[%emt 0:00:00]} 3. e3 {[%emt 0:00:00]} Bf5 {[%emt 0:00:13]} 4. Nd2 {[%emt 0:00:19]} e6 {[%emt 0:00:52]} 5. c3 {[%emt 0:00:23]} Bd6 {[%emt 0:00:36]} 6. Bg3 {[%emt 0:00:04]} O-O {[%emt 0:01:30]} 7. Ngf3 {[%emt 0:00:26]} c5 {[%emt 0:03:37]} 8. h4 {[%emt 0:04:02]} Bxg3 {[%emt 0:07:06]} 9. fxg3 {[%emt 0:00:06]} Nbd7 {[%emt 0:02:41]} 10. Qe2 {[%emt 0:09:02]} Qc7 {[%emt 0:01:13]} 11. O-O-O {[%emt 0:01:57]} Qxg3 {[%emt 0:02:52]} 12. dxc5 {[%emt 0:10:27]} Nxc5 {[%emt 0:01:54]} 13. Qb5 {[%emt 0:03:37]} Rfc8 {[%emt 0:01:03]} 14. Nb3 {[%emt 0:04:39]} Qf2 {[%emt 0:04:04]} 15. Qe2 {[%emt 0:06:16]} Nxb3+ {[%emt 0:02:21]} 16. axb3 {[%emt 0:00:02]} Qxe2 {[%emt 0:00:26]} 17. Bxe2 {[%emt 0:00:02]} Ng4 {[%emt 0:00:20]} 18. Rd2 {[%emt 0:05:43]} Nxe3 {[%emt 0:02:07]} 19. g3 {[%emt 0:00:38]} Be4 {[%emt 0:01:28]} 20. Rg1 {[%emt 0:01:36]} a5 {[%emt 0:13:27]} 21. Rd4 {[%emt 0:03:31]} Nf5 {[%emt 0:05:48]} 22. Rdd1 {[%emt 0:01:56]} a4 {[%emt 0:07:11]} 23. Nd2 {[%emt 0:15:12]} Ne3 {[%emt 0:01:14]} 24. Rde1 {[%emt 0:06:59]} axb3 {[%emt 0:07:31]} 25. Nxb3 {[%emt 0:00:40]} Nc4 {[%emt 0:00:31]} 26. Bxc4 {[%emt 0:09:22]} Rxc4 {[%emt 0:00:39]} 27. Kd1 {[%emt 0:02:21]} Rc6 {[%emt 0:05:13]} 28. Nd2 {[%emt 0:05:00]} Bd3 {[%emt 0:01:30]} 0-1

[Event "NED-ch U14 Girls 2019"]
[Site "Assen"]
[Date "2019.05.03"]
[Round "6.5"]
[White "Jonkman Inza, Amelia Marry"]
[Black "Mensing, Luana"]
[Result "1/2-1/2"]
[ECO "D52"]
[WhiteElo "1132"]
[BlackElo "1549"]
[Annotator "NA"]
[PlyCount "128"]
[EventDate "2019.04.28"]
[EventType "swiss"]
[EventCountry "NED"]
[SourceTitle "playchess.com"]
[Source "ChessBase"]
[SourceQuality "1"]
[TimeControl "40/5400+30:1800+30"]

1. d4 {[%emt 0:00:00]} d5 {[%emt 0:00:00]} 2. c4 {[%emt 0:00:00]} c6 {[%emt 0:00:00]} 3. Nc3 {[%emt 0:00:00]} e6 {[%emt 0:00:19]} 4. Nf3 {[%emt 0:00:44]} Nf6 {[%emt 0:00:31]} 5. Bg5 {[%emt 0:00:47]} Nbd7 {[%emt 0:00:54]} 6. e3 {[%emt 0:01:19]} Qa5 {[%emt 0:01:30]} 7. Nd2 {[%emt 0:02:56]} Bb4 {[%emt 0:02:29]} 8. Qc2 {[%emt 0:10:41]} dxc4 {[%emt 0:02:10]} 9. Bxf6 {[%emt 0:00:42]} Nxf6 {[%emt 0:00:06]} 10. Nxc4 {[%emt 0:02:59]} Bxc3+ {[%emt 0:05:19]} 11. Qxc3 {[%emt 0:04:12]} Qxc3+ {[%emt 0:01:21]} 12. bxc3 {[%emt 0:00:08]} b6 {[%emt 0:00:29]} 13. Bd3 {[%emt 0:04:10]} O-O {[%emt 0:04:48]} 14. O-O {[%emt 0:07:09]} Ba6 {[%emt 0:12:14]} 15. Ne5 {[%emt 0:09:03]} Bxd3 {[%emt 0:02:21]} 16. Nxd3 {[%emt 0:00:09]} Rfd8 {[%emt 0:01:07]} 17. Ne5 {[%emt 0:05:59]} Rac8 {[%emt 0:01:27]} 18. a4 {[%emt 0:01:58]} c5 {[%emt 0:00:35]} 19. Rfc1 {[%emt 0:03:07]} cxd4 {[%emt 0:04:45]} 20. cxd4 {[%emt 0:00:54]} h6 {[%emt 0:07:57]} 21. Nc6 {[%emt 0:09:18]} Rxc6 {[%emt 0:17:58]} 22. Rxc6 {[%emt 0:02:38]} Rd7 {[%emt 0:01:12]} 23. Kf1 {[%emt 0:02:47]} Nd5 {[%emt 0:06:31]} 24. Ke2 {[%emt 0:03:58]} Kf8 {[%emt 0:10:46]} 25. Kd2 {[%emt 0:06:50]} Ke7 {[%emt 0:05:48]} 26. a5 {[%emt 0:09:28]} f5 {[%emt 0:04:07]} 27. axb6 {[%emt 0:03:02]} axb6 {[%emt 0:00:06]} 28. Ke2 {[%emt 0:02:26]} Rb7 {[%emt 0:01:06]} 29. Rb1 {[%emt 0:02:01]} b5 {[%emt 0:00:39]} 30. Kd3 {[%emt 0:01:39]} b4 {[%emt 0:01:15]} 31. Kc4 {[%emt 0:01:11]} Kd7 {[%emt 0:02:21]} 32. Rc5 {[%emt 0:01:02]} Nb6+ {[%emt 0:00:35]} 33. Kb3 {[%emt 0:00:38]} Nd5 {[%emt 0:00:28]} 34. Kc2 {[%emt 0:01:00]} Ra7 {[%emt 0:00:53]} 35. Rb2 {[%emt 0:00:42]} Rb7 {[%emt 0:00:52]} 36. Kd3 {[%emt 0:00:40]} Kd6 {[%emt 0:01:12]} 37. f3 {[%emt 0:00:30]} e5 {[%emt 0:00:54]} 38. Ra5 {[%emt 0:00:56]} exd4 {[%emt 0:00:41]} 39. Kxd4 {[%emt 0:00:23]} Nc3 {[%emt 0:00:48]} 40. Rxf5 {[%emt 0:00:45]} Na4 {[%emt 0:00:33]} 41. Rb3 {[%emt 0:30:39]} Nc3 {[%emt 0:01:02]} 42. Kc4 {[%emt 0:00:00]} Na2 {[%emt 0:01:55]} 43. Ra5 {[%emt 0:00:00]} Rc7+ {[%emt 0:00:33]} 44. Kd4 {[%emt 0:00:00]} Rc2 {[%emt 0:00:12]} 45. Ra6+ {[%emt 0:00:00]} Ke7 {[%emt 0:00:07]} 46. Rg6 {[%emt 0:00:00]} Kf7 {[%emt 0:01:14]} 47. Rg4 {[%emt 0:00:00]} Kf6 {[%emt 0:04:56]} 48. e4 {[%emt 0:00:00]} g5 {[%emt 0:02:38]} 49. Kd3 {[%emt 0:00:00]} Rf2 {[%emt 0:01:52]} 50. Kc4 {[%emt 0:00:00]} Rc2+ {[%emt 0:08:30]} 51. Kb5 {[%emt 0:00:00]} h5 {[%emt 0:07:33]} 52. Rg3 {[%emt 0:00:00]} Re2 {[%emt 0:00:28]} 53. Rxb4 {[%emt 0:01:13]} Nxb4 {[%emt 0:00:36]} 54. Kxb4 {[%emt 0:00:06]} Ra2 {[%emt 0:01:18]} 55. Rh3 {[%emt 0:02:56]} h4 {[%emt 0:01:13]} 56. g3 {[%emt 0:01:14]} hxg3 {[%emt 0:00:46]} 57. hxg3 {[%emt 0:00:28]} Rf2 {[%emt 0:01:07]} 58. g4 {[%emt 0:01:18]} Ke5 {[%emt 0:00:13]} 59. Kc5 {[%emt 0:00:47]} Kf4 {[%emt 0:00:50]} 60. Kd6 {[%emt 0:00:50]} Rd2+ {[%emt 0:00:31]} 61. Ke6 {[%emt 0:00:23]} Re2 {[%emt 0:00:25]} 62. Rh5 {[%emt 0:00:52]} Kxf3 {[%emt 0:00:15]} 63. Rxg5 {[%emt 0:00:12]} Rxe4+ {[%emt 0:00:07]} 64. Kf5 {[%emt 0:00:46]} Rf4+ {[%emt 0:00:05]} 1/2-1/2